[Event "Titled Tuesday Blitz November 14 Early 2023"]
[White "Devaev, Alexander"]
[Black "Kuzhylnyi, Oleksandr"]
[WhiteFideId "4169395"]
[BlackFideId "34110500"]
[WhiteElo "2471"]
[BlackElo "2636"]
[Result "1-0"]
[Round "6"]
[TimeControl "180+1"]
[Date "2023.11.14"]
[WhiteClock "0:00:09"]
[BlackClock "0:00:06"]
[Board "82"]

1. Nf3 {[%clk 0:03:00]}  g6 {[%clk 0:03:00]} 2. d4 {[%clk 0:03:00]}  Bg7 {[%clk 0:03:01]} 3. c4 {[%clk 0:03:01]}  d6 {[%clk 0:03:01]} 4. Nc3 {[%clk 0:03:01]}  Nf6 {[%clk 0:02:54]} 5. e4 {[%clk 0:03:01]}  O-O {[%clk 0:02:54]} 6. h3 {[%clk 0:03:02]}  Nbd7 {[%clk 0:02:53]} 7. Bg5 {[%clk 0:03:01]}  e5 {[%clk 0:02:50]} 8. d5 {[%clk 0:03:01]}  Qe7 {[%clk 0:02:38]} 9. g4 {[%clk 0:02:59]}  Kh8 {[%clk 0:02:37]} 10. Rg1 {[%clk 0:02:58]}  a5 {[%clk 0:02:33]} 11. Be2 {[%clk 0:02:56]}  Nc5 {[%clk 0:02:31]} 12. Nd2 {[%clk 0:02:52]}  c6 {[%clk 0:02:26]} 13. h4 {[%clk 0:02:51]}  a4 {[%clk 0:02:23]} 14. h5 {[%clk 0:02:50]}  h6 {[%clk 0:02:23]} 15. Be3 {[%clk 0:02:51]}  g5 {[%clk 0:02:14]} 16. f3 {[%clk 0:02:51]}  cxd5 {[%clk 0:02:12]} 17. cxd5 {[%clk 0:02:50]}  Bd7 {[%clk 0:02:12]} 18. Bxc5 {[%clk 0:02:20]}  dxc5 {[%clk 0:02:12]} 19. Bb5 {[%clk 0:02:21]}  a3 {[%clk 0:01:46]} 20. b3 {[%clk 0:02:14]}  Ne8 {[%clk 0:01:45]} 21. Nc4 {[%clk 0:02:07]}  Nd6 {[%clk 0:01:28]} 22. Bxd7 {[%clk 0:02:02]}  Qxd7 {[%clk 0:01:29]} 23. Qe2 {[%clk 0:01:48]}  Ra6 {[%clk 0:01:22]} 24. O-O-O {[%clk 0:01:43]}  Nc8 {[%clk 0:01:17]} 25. Nd2 {[%clk 0:01:36]}  Nd6 {[%clk 0:01:15]} 26. Nc4 {[%clk 0:01:34]}  Nc8 {[%clk 0:01:14]} 27. Ne3 {[%clk 0:01:35]}  Nd6 {[%clk 0:01:09]} 28. Nf5 {[%clk 0:01:33]}  Nxf5 {[%clk 0:01:09]} 29. gxf5 {[%clk 0:01:32]}  Bf6 {[%clk 0:01:06]} 30. Qb5 {[%clk 0:01:25]}  Qe7 {[%clk 0:00:51]} 31. d6 {[%clk 0:01:20]}  Rxd6 {[%clk 0:00:49]} 32. Rxd6 {[%clk 0:01:21]}  Qxd6 {[%clk 0:00:50]} 33. Rd1 {[%clk 0:01:13]}  Qc6 {[%clk 0:00:37]} 34. Qxc6 {[%clk 0:01:11]}  bxc6 {[%clk 0:00:38]} 35. Rd6 {[%clk 0:01:12]}  Kg7 {[%clk 0:00:38]} 36. Rxc6 {[%clk 0:01:12]}  g4 {[%clk 0:00:26]} 37. fxg4 {[%clk 0:01:10]}  Bg5+ {[%clk 0:00:21]} 38. Kd1 {[%clk 0:01:11]}  Be3 {[%clk 0:00:21]} 39. Nd5 {[%clk 0:01:08]}  Bd4 {[%clk 0:00:21]} 40. Ke2 {[%clk 0:00:55]}  Rb8 {[%clk 0:00:18]} 41. f6+ {[%clk 0:00:45]}  Kf8 {[%clk 0:00:18]} 42. Kd3 {[%clk 0:00:43]}  Ke8 {[%clk 0:00:15]} 43. Kc4 {[%clk 0:00:42]}  Kd7 {[%clk 0:00:12]} 44. Ra6 {[%clk 0:00:42]}  Rg8 {[%clk 0:00:11]} 45. Ra7+ {[%clk 0:00:41]}  Ke6 {[%clk 0:00:11]} 46. Re7+ {[%clk 0:00:40]}  Kd6 {[%clk 0:00:12]} 47. Rxf7 {[%clk 0:00:40]}  Rxg4 {[%clk 0:00:13]} 48. Rg7 {[%clk 0:00:25]}  Rxe4 {[%clk 0:00:12]} 49. f7 {[%clk 0:00:25]}  Bb2+ {[%clk 0:00:07]} 50. Kd3 {[%clk 0:00:16]}  Rd4+ {[%clk 0:00:07]} 51. Ke2 {[%clk 0:00:15]}  Kxd5 {[%clk 0:00:07]} 52. f8=Q {[%clk 0:00:15]}  Rf4 {[%clk 0:00:08]} 53. Qa8+ {[%clk 0:00:12]}  Ke6 {[%clk 0:00:06]} 54. Rg6+ {[%clk 0:00:12]}  Kf5 {[%clk 0:00:06]} 55. Qg2 {[%clk 0:00:10]}  Bd4 {[%clk 0:00:06]} 56. Qh3+ {[%clk 0:00:10]}  Ke4 {[%clk 0:00:06]} 57. Qh1+ {[%clk 0:00:11]}  Kf5 {[%clk 0:00:06]} 58. Qh3+ {[%clk 0:00:09]}  Ke4 {[%clk 0:00:07]} 59. Qd3+ {[%clk 0:00:10]}  Kd5 {[%clk 0:00:07]} 60. Rg2 {[%clk 0:00:08]}  e4 {[%clk 0:00:06]} 61. Qc4+ {[%clk 0:00:09]}  Ke5 {[%clk 0:00:06]} 62. Qg8 {[%clk 0:00:09]}  Rf5 {[%clk 0:00:05]} 63. Qe8+ {[%clk 0:00:09]}  Kf4 {[%clk 0:00:05]} 64. Qb8+ {[%clk 0:00:09]}  Be5 {[%clk 0:00:05]} 65. Qg8 {[%clk 0:00:10]}  Bd4 {[%clk 0:00:05]} 66. Qg4+ {[%clk 0:00:10]}  Ke5 {[%clk 0:00:06]} 67. Qg8 {[%clk 0:00:10]}  Kf4 {[%clk 0:00:06]} 68. Qg3# {[%clk 0:00:09]} 1-0


[Site "https://www.chess.com"]

[Event "Titled Tuesday Blitz November 14 Early 2023"]
[White "GatoRojo150"]
[Black "UNSTOPPABLE_LEGEND"]
[WhiteElo "2633"]
[BlackElo "2470"]
[Result "1-0"]
[Round "6"]
[TimeControl "180+1"]
[Date "2023.11.14"]
[WhiteClock "0:02:41"]
[BlackClock "0:02:15"]
[Board "83"]

1. e4 {[%clk 0:03:00]}  c6 {[%clk 0:02:57]} 2. Nc3 {[%clk 0:03:00]}  d5 {[%clk 0:02:58]} 3. Nf3 {[%clk 0:03:00]}  Bg4 {[%clk 0:02:58]} 4. Be2 {[%clk 0:03:00]}  e6 {[%clk 0:02:52]} 5. d4 {[%clk 0:02:59]}  Nf6 {[%clk 0:02:46]} 6. e5 {[%clk 0:02:59]}  Nfd7 {[%clk 0:02:42]} 7. Ng5 {[%clk 0:02:59]}  Bxe2 {[%clk 0:02:39]} 8. Qxe2 {[%clk 0:03:00]}  Be7 {[%clk 0:02:39]} 9. Qh5 {[%clk 0:03:00]}  g6 {[%clk 0:02:35]} 10. Qh6 {[%clk 0:03:00]}  Bf8 {[%clk 0:02:35]} 11. Qh3 {[%clk 0:02:59]}  Bg7 {[%clk 0:02:27]} 12. O-O {[%clk 0:02:57]}  h6 {[%clk 0:02:23]} 13. Nxe6 {[%clk 0:02:57]}  fxe6 {[%clk 0:02:23]} 14. Qxe6+ {[%clk 0:02:58]}  Qe7 {[%clk 0:02:23]} 15. Qxg6+ {[%clk 0:02:59]}  Kd8 {[%clk 0:02:24]} 16. f4 {[%clk 0:02:56]}  Nf8 {[%clk 0:02:23]} 17. Qh5 {[%clk 0:02:54]}  Qe8 {[%clk 0:02:20]} 18. Qh4+ {[%clk 0:02:52]}  Kc8 {[%clk 0:02:17]} 19. f5 {[%clk 0:02:48]}  Rg8 {[%clk 0:02:17]} 20. f6 {[%clk 0:02:44]}  Bh8 {[%clk 0:02:15]} 21. f7 {[%clk 0:02:41]} 1-0


[Site "https://www.chess.com"]

[Event "Titled Tuesday Blitz November 14 Early 2023"]
[White "Mazurkiewicz, Michal"]
[Black "Fromm, Marius"]
[WhiteFideId "1124943"]
[BlackFideId "12993190"]
[WhiteElo "2458"]
[BlackElo "2633"]
[Result "0-1"]
[Round "6"]
[TimeControl "180+1"]
[Date "2023.11.14"]
[WhiteClock "0:00:00"]
[BlackClock "0:01:06"]
[Board "84"]

1. e4 {[%clk 0:02:59]}  c5 {[%clk 0:02:59]} 2. Nf3 {[%clk 0:02:59]}  e6 {[%clk 0:03:00]} 3. d3 {[%clk 0:02:59]}  Nc6 {[%clk 0:02:59]} 4. g3 {[%clk 0:03:00]}  d5 {[%clk 0:02:59]} 5. Nbd2 {[%clk 0:03:00]}  Nge7 {[%clk 0:02:55]} 6. Bg2 {[%clk 0:03:01]}  g6 {[%clk 0:02:55]} 7. O-O {[%clk 0:03:00]}  Bg7 {[%clk 0:02:56]} 8. Re1 {[%clk 0:03:01]}  O-O {[%clk 0:02:56]} 9. Qe2 {[%clk 0:03:02]}  e5 {[%clk 0:02:43]} 10. exd5 {[%clk 0:02:52]}  Nxd5 {[%clk 0:02:44]} 11. Nc4 {[%clk 0:02:53]}  Re8 {[%clk 0:02:41]} 12. c3 {[%clk 0:02:53]}  b6 {[%clk 0:02:37]} 13. Nfxe5 {[%clk 0:01:54]}  Nxe5 {[%clk 0:02:20]} 14. f4 {[%clk 0:01:22]}  Nf3+ {[%clk 0:02:08]} 15. Qxf3 {[%clk 0:01:06]}  Rxe1+ {[%clk 0:02:09]} 16. Kf2 {[%clk 0:01:06]}  Rxc1 {[%clk 0:01:57]} 17. Rxc1 {[%clk 0:01:04]}  Be6 {[%clk 0:01:51]} 18. Ne3 {[%clk 0:00:39]}  Nc7 {[%clk 0:01:48]} 19. g4 {[%clk 0:00:26]}  Rb8 {[%clk 0:01:37]} 20. f5 {[%clk 0:00:26]}  Bxa2 {[%clk 0:01:30]} 21. Rf1 {[%clk 0:00:21]}  Qd6 {[%clk 0:01:13]} 22. Kg1 {[%clk 0:00:21]}  Re8 {[%clk 0:01:12]} 23. fxg6 {[%clk 0:00:18]}  fxg6 {[%clk 0:01:09]} 24. Qf7+ {[%clk 0:00:03]}  Bxf7 {[%clk 0:01:08]} 25. Nc4 {[%clk 0:00:00]}  Qxd3 {[%clk 0:01:06]} 0-1


[Site "https://www.chess.com"]

[Event "Titled Tuesday Blitz November 14 Early 2023"]
[White "FoxOnTheRun97"]
[Black "Begunov, Konstantin"]
[BlackFideId "4118510"]
[WhiteElo "2625"]
[BlackElo "2446"]
[Result "1/2-1/2"]
[Round "6"]
[TimeControl "180+1"]
[Date "2023.11.14"]
[WhiteClock "0:00:07"]
[BlackClock "0:00:11"]
[Board "85"]

1. d4 {[%clk 0:02:56]}  d5 {[%clk 0:03:00]} 2. c4 {[%clk 0:02:56]}  c6 {[%clk 0:03:00]} 3. Nf3 {[%clk 0:02:55]}  Nf6 {[%clk 0:03:00]} 4. g3 {[%clk 0:02:55]}  Bf5 {[%clk 0:03:00]} 5. Nc3 {[%clk 0:02:55]}  e6 {[%clk 0:03:00]} 6. Nh4 {[%clk 0:02:56]}  Bg4 {[%clk 0:02:59]} 7. h3 {[%clk 0:02:54]}  Bh5 {[%clk 0:02:59]} 8. g4 {[%clk 0:02:53]}  Ne4 {[%clk 0:02:53]} 9. Nxe4 {[%clk 0:02:39]}  dxe4 {[%clk 0:02:53]} 10. Ng2 {[%clk 0:02:29]}  Bg6 {[%clk 0:02:48]} 11. Nf4 {[%clk 0:02:26]}  Bb4+ {[%clk 0:01:44]} 12. Bd2 {[%clk 0:02:25]}  Bd6 {[%clk 0:01:42]} 13. Bg2 {[%clk 0:02:14]}  Bxf4 {[%clk 0:01:31]} 14. Bxf4 {[%clk 0:02:15]}  Nd7 {[%clk 0:01:28]} 15. e3 {[%clk 0:01:38]}  O-O {[%clk 0:01:22]} 16. b4 {[%clk 0:01:12]}  Re8 {[%clk 0:01:19]} 17. Bg3 {[%clk 0:01:01]}  e5 {[%clk 0:01:12]} 18. d5 {[%clk 0:00:57]}  cxd5 {[%clk 0:01:08]} 19. Qxd5 {[%clk 0:00:54]}  Nb6 {[%clk 0:01:02]} 20. Qxd8 {[%clk 0:00:51]}  Raxd8 {[%clk 0:01:03]} 21. c5 {[%clk 0:00:43]}  Nd5 {[%clk 0:00:45]} 22. a3 {[%clk 0:00:41]}  Nc3 {[%clk 0:00:45]} 23. O-O {[%clk 0:00:27]}  Ne2+ {[%clk 0:00:41]} 24. Kh2 {[%clk 0:00:27]}  Rd3 {[%clk 0:00:26]} 25. Rfb1 {[%clk 0:00:17]}  f6 {[%clk 0:00:17]} 26. Bf1 {[%clk 0:00:16]}  Rd2 {[%clk 0:00:16]} 27. Rd1 {[%clk 0:00:14]}  Red8 {[%clk 0:00:15]} 28. Rxd2 {[%clk 0:00:14]}  Rxd2 {[%clk 0:00:15]} 29. Rb1 {[%clk 0:00:12]}  Nxg3 {[%clk 0:00:15]} 30. Kxg3 {[%clk 0:00:12]}  Bf7 {[%clk 0:00:14]} 31. b5 {[%clk 0:00:11]}  Be8 {[%clk 0:00:10]} 32. Bc4+ {[%clk 0:00:09]}  Kf8 {[%clk 0:00:10]} 33. b6 {[%clk 0:00:08]}  axb6 {[%clk 0:00:09]} 34. Rxb6 {[%clk 0:00:07]}  Rc2 {[%clk 0:00:09]} 35. Bd5 {[%clk 0:00:07]}  Rxc5 {[%clk 0:00:08]} 36. Bxe4 {[%clk 0:00:07]}  Bc6 {[%clk 0:00:07]} 37. Bxc6 {[%clk 0:00:07]}  bxc6 {[%clk 0:00:08]} 38. Rb8+ {[%clk 0:00:06]}  Kf7 {[%clk 0:00:08]} 39. Rb7+ {[%clk 0:00:07]}  Kg6 {[%clk 0:00:08]} 40. h4 {[%clk 0:00:06]}  h6 {[%clk 0:00:08]} 41. h5+ {[%clk 0:00:06]}  Kh7 {[%clk 0:00:08]} 42. Ra7 {[%clk 0:00:05]}  Rc2 {[%clk 0:00:08]} 43. Kf3 {[%clk 0:00:05]}  c5 {[%clk 0:00:08]} 44. a4 {[%clk 0:00:06]}  c4 {[%clk 0:00:09]} 45. a5 {[%clk 0:00:06]}  c3 {[%clk 0:00:09]} 46. Rc7 {[%clk 0:00:06]}  Ra2 {[%clk 0:00:09]} 47. Rxc3 {[%clk 0:00:06]}  Rxa5 {[%clk 0:00:09]} 48. Kg3 {[%clk 0:00:06]}  Ra2 {[%clk 0:00:10]} 49. f3 {[%clk 0:00:06]}  Ra4 {[%clk 0:00:10]} 50. f4 {[%clk 0:00:06]}  exf4+ {[%clk 0:00:09]} 51. exf4 {[%clk 0:00:07]}  Ra5 {[%clk 0:00:09]} 52. Rd3 {[%clk 0:00:06]}  Rb5 {[%clk 0:00:10]} 53. Rc3 {[%clk 0:00:07]}  Ra5 {[%clk 0:00:10]} 54. Rc7 {[%clk 0:00:07]}  Rb5 {[%clk 0:00:10]} 55. Kh4 {[%clk 0:00:07]}  Ra5 {[%clk 0:00:10]} 56. Kg3 {[%clk 0:00:07]}  Rb5 {[%clk 0:00:11]} 57. Rc3 {[%clk 0:00:07]}  Ra5 {[%clk 0:00:11]} 1/2-1/2


[Site "https://www.chess.com"]

[Event "Titled Tuesday Blitz November 14 Early 2023"]
[White "Belov, Alexei"]
[Black "Preobrazhenska_D2011"]
[WhiteFideId "4128206"]
[WhiteElo "2623"]
[BlackElo "2446"]
[Result "0-1"]
[Round "6"]
[TimeControl "180+1"]
[Date "2023.11.14"]
[WhiteClock "0:00:12"]
[BlackClock "0:00:05"]
[Board "86"]

1. e4 {[%clk 0:02:54]}  c5 {[%clk 0:02:57]} 2. Nf3 {[%clk 0:02:54]}  d6 {[%clk 0:02:57]} 3. d4 {[%clk 0:02:54]}  cxd4 {[%clk 0:02:58]} 4. Nxd4 {[%clk 0:02:54]}  Nf6 {[%clk 0:02:58]} 5. Nc3 {[%clk 0:02:54]}  a6 {[%clk 0:02:58]} 6. Be2 {[%clk 0:02:54]}  e5 {[%clk 0:02:58]} 7. Nb3 {[%clk 0:02:54]}  Be7 {[%clk 0:02:59]} 8. O-O {[%clk 0:02:55]}  O-O {[%clk 0:02:59]} 9. Kh1 {[%clk 0:02:55]}  Nc6 {[%clk 0:02:58]} 10. f4 {[%clk 0:02:47]}  exf4 {[%clk 0:02:46]} 11. Bxf4 {[%clk 0:02:47]}  Ne5 {[%clk 0:02:43]} 12. Qe1 {[%clk 0:02:46]}  Qc7 {[%clk 0:02:38]} 13. Qg3 {[%clk 0:02:40]}  Kh8 {[%clk 0:02:34]} 14. Rad1 {[%clk 0:02:38]}  Be6 {[%clk 0:02:25]} 15. Nd4 {[%clk 0:02:37]}  Bd7 {[%clk 0:02:12]} 16. Bg5 {[%clk 0:02:33]}  Qd8 {[%clk 0:01:35]} 17. Nf5 {[%clk 0:02:16]}  Bxf5 {[%clk 0:01:30]} 18. Rxf5 {[%clk 0:02:15]}  Rc8 {[%clk 0:01:14]} 19. Rxe5 {[%clk 0:02:10]}  h6 {[%clk 0:00:46]} 20. Bxf6 {[%clk 0:01:58]}  Bxf6 {[%clk 0:00:45]} 21. Red5 {[%clk 0:01:57]}  Qb6 {[%clk 0:00:37]} 22. Na4 {[%clk 0:01:02]}  Qb4 {[%clk 0:00:32]} 23. b3 {[%clk 0:00:57]}  Qxe4 {[%clk 0:00:17]} 24. Qd3 {[%clk 0:00:39]}  Qh4 {[%clk 0:00:11]} 25. g3 {[%clk 0:00:36]}  Qb4 {[%clk 0:00:09]} 26. c4 {[%clk 0:00:30]}  b5 {[%clk 0:00:05]} 27. cxb5 {[%clk 0:00:28]}  axb5 {[%clk 0:00:04]} 28. Qxb5 {[%clk 0:00:28]}  Qe4+ {[%clk 0:00:03]} 29. Kg1 {[%clk 0:00:27]}  Rc2 {[%clk 0:00:03]} 30. R5d2 {[%clk 0:00:20]}  Bd4+ {[%clk 0:00:03]} 31. Rxd4 {[%clk 0:00:19]}  Qe3+ {[%clk 0:00:03]} 32. Kf1 {[%clk 0:00:19]}  Re8 {[%clk 0:00:03]} 33. Qd3 {[%clk 0:00:15]}  Rxe2 {[%clk 0:00:02]} 34. Qxe3 {[%clk 0:00:15]}  R2xe3 {[%clk 0:00:03]} 35. Rxd6 {[%clk 0:00:15]}  Rf3+ {[%clk 0:00:03]} 36. Kg2 {[%clk 0:00:15]}  Rfe3 {[%clk 0:00:04]} 37. Rd8 {[%clk 0:00:15]}  Re2+ {[%clk 0:00:04]} 38. Kf3 {[%clk 0:00:15]}  Re3+ {[%clk 0:00:04]} 39. Kg2 {[%clk 0:00:14]}  Re2+ {[%clk 0:00:04]} 40. Kh3 {[%clk 0:00:14]}  Rxd8 {[%clk 0:00:03]} 41. Rxd8+ {[%clk 0:00:14]}  Kh7 {[%clk 0:00:04]} 42. Nc3 {[%clk 0:00:15]}  Rc2 {[%clk 0:00:04]} 43. Rc8 {[%clk 0:00:15]}  g5 {[%clk 0:00:04]} 44. Kg4 {[%clk 0:00:14]}  Kg6 {[%clk 0:00:04]} 45. Rc6+ {[%clk 0:00:14]}  f6 {[%clk 0:00:05]} 46. h3 {[%clk 0:00:13]}  Rf2 {[%clk 0:00:04]} 47. h4 {[%clk 0:00:12]}  h5+ {[%clk 0:00:05]} 48. Kh3 {[%clk 0:00:12]}  g4# {[%clk 0:00:05]} 0-1


[Site "https://www.chess.com"]

[Event "Titled Tuesday Blitz November 14 Early 2023"]
[White "Gontcharov, Vladislav"]
[Black "YouShallNotPass001"]
[WhiteFideId "4123492"]
[WhiteElo "2620"]
[BlackElo "2436"]
[Result "0-1"]
[Round "6"]
[TimeControl "180+1"]
[Date "2023.11.14"]
[WhiteClock "0:00:00"]
[BlackClock "0:01:37"]
[Board "87"]

1. d4 {[%clk 0:03:00]}  Nf6 {[%clk 0:03:00]} 2. c4 {[%clk 0:02:59]}  e6 {[%clk 0:03:01]} 3. Nc3 {[%clk 0:02:58]}  d5 {[%clk 0:03:01]} 4. cxd5 {[%clk 0:02:57]}  exd5 {[%clk 0:03:02]} 5. Bg5 {[%clk 0:02:57]}  c6 {[%clk 0:03:03]} 6. e3 {[%clk 0:02:54]}  Be7 {[%clk 0:03:03]} 7. Bd3 {[%clk 0:02:52]}  Nbd7 {[%clk 0:03:03]} 8. Nge2 {[%clk 0:02:50]}  O-O {[%clk 0:03:04]} 9. O-O {[%clk 0:02:49]}  Re8 {[%clk 0:03:04]} 10. a3 {[%clk 0:02:26]}  a5 {[%clk 0:03:03]} 11. Rb1 {[%clk 0:02:24]}  b5 {[%clk 0:03:03]} 12. Rc1 {[%clk 0:02:12]}  Nb6 {[%clk 0:03:00]} 13. Bxf6 {[%clk 0:02:04]}  Bxf6 {[%clk 0:02:59]} 14. e4 {[%clk 0:02:04]}  dxe4 {[%clk 0:02:53]} 15. Nxe4 {[%clk 0:01:35]}  Nc4 {[%clk 0:02:35]} 16. Nxf6+ {[%clk 0:01:08]}  Qxf6 {[%clk 0:02:34]} 17. Bxc4 {[%clk 0:01:01]}  bxc4 {[%clk 0:02:35]} 18. Nc3 {[%clk 0:01:00]}  Bf5 {[%clk 0:02:32]} 19. Qf3 {[%clk 0:00:57]}  Bd3 {[%clk 0:02:30]} 20. Qxf6 {[%clk 0:00:55]}  gxf6 {[%clk 0:02:31]} 21. Rfd1 {[%clk 0:00:50]}  Rad8 {[%clk 0:02:29]} 22. b3 {[%clk 0:00:43]}  Rxd4 {[%clk 0:02:28]} 23. bxc4 {[%clk 0:00:42]}  Red8 {[%clk 0:02:29]} 24. c5 {[%clk 0:00:40]}  Bg6 {[%clk 0:02:23]} 25. Kf1 {[%clk 0:00:38]}  Kf8 {[%clk 0:02:15]} 26. Ke2 {[%clk 0:00:36]}  Re8+ {[%clk 0:02:15]} 27. Kf1 {[%clk 0:00:35]}  Rc4 {[%clk 0:02:13]} 28. Ne2 {[%clk 0:00:28]}  Rxc1 {[%clk 0:02:11]} 29. Nxc1 {[%clk 0:00:28]}  Re5 {[%clk 0:02:11]} 30. Nb3 {[%clk 0:00:27]}  a4 {[%clk 0:02:11]} 31. Nd4 {[%clk 0:00:22]}  Rxc5 {[%clk 0:02:09]} 32. Ke2 {[%clk 0:00:20]}  Rc3 {[%clk 0:02:09]} 33. Rd2 {[%clk 0:00:08]}  c5 {[%clk 0:02:08]} 34. Nb5 {[%clk 0:00:08]}  Rb3 {[%clk 0:02:07]} 35. Nc7 {[%clk 0:00:06]}  Rxa3 {[%clk 0:02:03]} 36. Rd8+ {[%clk 0:00:06]}  Ke7 {[%clk 0:01:55]} 37. Ra8 {[%clk 0:00:06]}  Ra1 {[%clk 0:01:51]} 38. Ra7 {[%clk 0:00:06]}  Kd6 {[%clk 0:01:43]} 39. Nb5+ {[%clk 0:00:03]}  Kc6 {[%clk 0:01:43]} 40. Nc3 {[%clk 0:00:02]}  a3 {[%clk 0:01:43]} 41. Ra6+ {[%clk 0:00:02]}  Kb7 {[%clk 0:01:44]} 42. Ra5 {[%clk 0:00:01]}  c4 {[%clk 0:01:42]} 43. Ke3 {[%clk 0:00:01]}  Bc2 {[%clk 0:01:37]} 44. Kd4 {[%clk 0:00:00]}  Bb3 {[%clk 0:01:37]} 0-1


[Site "https://www.chess.com"]

[Event "Titled Tuesday Blitz November 14 Early 2023"]
[White "Feuerstack, Aljoscha"]
[Black "Haitin, Ilja"]
[WhiteFideId "4681932"]
[BlackFideId "4501764"]
[WhiteElo "2618"]
[BlackElo "2427"]
[Result "1-0"]
[Round "6"]
[TimeControl "180+1"]
[Date "2023.11.14"]
[WhiteClock "0:00:16"]
[BlackClock "0:00:00"]
[Board "88"]

1. e4 {[%clk 0:03:00]}  e5 {[%clk 0:02:59]} 2. Bc4 {[%clk 0:03:00]}  Nc6 {[%clk 0:02:58]} 3. Nc3 {[%clk 0:03:00]}  Nf6 {[%clk 0:02:50]} 4. d3 {[%clk 0:03:00]}  Na5 {[%clk 0:02:47]} 5. Qf3 {[%clk 0:02:59]}  Nxc4 {[%clk 0:02:46]} 6. dxc4 {[%clk 0:03:00]}  Bb4 {[%clk 0:02:43]} 7. Ne2 {[%clk 0:03:00]}  d6 {[%clk 0:02:43]} 8. O-O {[%clk 0:02:57]}  Be6 {[%clk 0:02:43]} 9. b3 {[%clk 0:02:56]}  O-O {[%clk 0:02:39]} 10. Bg5 {[%clk 0:02:38]}  h6 {[%clk 0:02:34]} 11. Bxf6 {[%clk 0:02:34]}  Qxf6 {[%clk 0:02:35]} 12. Qxf6 {[%clk 0:02:34]}  gxf6 {[%clk 0:02:35]} 13. Nd5 {[%clk 0:02:15]}  Ba5 {[%clk 0:02:27]} 14. Nxf6+ {[%clk 0:02:10]}  Kg7 {[%clk 0:02:27]} 15. Nh5+ {[%clk 0:02:05]}  Kg6 {[%clk 0:02:27]} 16. Nhg3 {[%clk 0:01:57]}  h5 {[%clk 0:02:27]} 17. f4 {[%clk 0:01:56]}  Bb6+ {[%clk 0:02:15]} 18. Kh1 {[%clk 0:01:56]}  exf4 {[%clk 0:02:07]} 19. Nxf4+ {[%clk 0:01:57]}  Kg5 {[%clk 0:02:06]} 20. Nfxh5 {[%clk 0:01:49]}  Rh8 {[%clk 0:02:01]} 21. Nf4 {[%clk 0:01:45]}  Bd4 {[%clk 0:01:46]} 22. Rad1 {[%clk 0:01:34]}  Be5 {[%clk 0:01:46]} 23. Nxe6+ {[%clk 0:01:16]}  fxe6 {[%clk 0:01:46]} 24. Rd3 {[%clk 0:01:17]}  c5 {[%clk 0:00:44]} 25. h3 {[%clk 0:01:01]}  Raf8 {[%clk 0:00:34]} 26. Rdf3 {[%clk 0:00:49]}  Rxf3 {[%clk 0:00:28]} 27. Rxf3 {[%clk 0:00:50]}  Bxg3 {[%clk 0:00:19]} 28. Rxg3+ {[%clk 0:00:51]}  Kf4 {[%clk 0:00:20]} 29. Rd3 {[%clk 0:00:20]}  Rd8 {[%clk 0:00:15]} 30. g4 {[%clk 0:00:21]}  Kxe4 {[%clk 0:00:14]} 31. Kg2 {[%clk 0:00:21]}  d5 {[%clk 0:00:14]} 32. Kg3 {[%clk 0:00:21]}  d4 {[%clk 0:00:13]} 33. h4 {[%clk 0:00:22]}  Rf8 {[%clk 0:00:12]} 34. h5 {[%clk 0:00:22]}  Rf1 {[%clk 0:00:09]} 35. Kg2 {[%clk 0:00:22]}  Rf4 {[%clk 0:00:08]} 36. Rg3 {[%clk 0:00:19]}  Rf8 {[%clk 0:00:01]} 37. h6 {[%clk 0:00:19]}  Rh8 {[%clk 0:00:01]} 38. g5 {[%clk 0:00:18]}  Kf4 {[%clk 0:00:01]} 39. g6 {[%clk 0:00:15]}  Rxh6 {[%clk 0:00:00]} 40. g7 {[%clk 0:00:16]} 1-0


[Site "https://www.chess.com"]